bitfinex/quotes_BTCUSD_20240929
["timestamp","ask_amount","ask_price","bid_price","bid_amount"]
[1727578879365,0.26515897,65958.0,65957.0,0.0827]
[1727578880039,0.1515352,65958.0,65957.0,0.0827]
[1727578880278,0.26515897,65958.0,65957.0,0.0827]
[1727578880530,0.1515352,65958.0,65957.0,0.0827]
[1727578880780,0.24239904,65958.0,65957.0,0.0827]
[1727578881011,0.1515352,65958.0,65957.0,0.0827]
[1727578881257,0.37999408,65958.0,65957.0,0.0827]
[1727578881495,0.151616,65956.0,65955.0,0.002]
[1727578881738,0.21975109,65956.0,65955.0,0.002]
[1727578881981,0.151616,65956.0,65955.0,0.002]
[1727578882479,0.21974894,65956.0,65955.0,0.002]
[1727578882714,0.151616,65956.0,65955.0,0.002]
[1727578882949,0.22074894,65956.0,65955.0,0.002]
[1727578883196,0.152616,65956.0,65955.0,0.002]
[1727578883866,0.46571357,65956.0,65955.0,0.002]
[1727578884093,0.36617449,65956.0,65955.0,0.002]
[1727578884548,0.252616,65956.0,65955.0,0.002]
[1727578884773,0.36617449,65956.0,65955.0,0.002]
[1727578885003,0.252616,65956.0,65955.0,0.002]
[1727578886200,0.251616,65956.0,65955.0,0.002]
[1727578886689,0.35491116,65956.0,65955.0,0.002]
[1727578887643,0.26414025,65956.0,65955.0,0.002]
[1727578887879,0.35091116,65956.0,65955.0,0.002]
[1727578888124,0.35791116,65956.0,65955.0,0.002]
[1727578888597,0.26414025,65956.0,65955.0,0.002]
[1727578889070,0.33520222,65956.0,65955.0,0.002]
[1727578889304,0.26714025,65956.0,65955.0,0.002]
[1727578889540,0.33519734,65956.0,65955.0,0.002]
[1727578892124,0.33519032,65956.0,65955.0,0.002]
[1727578892352,0.32666607,65956.0,65955.0,0.002]
[1727578894965,0.258616,65956.0,65955.0,0.002]
[1727578895210,0.32666607,65956.0,65955.0,0.002828]
[1727578896147,0.32665889,65956.0,65955.0,0.002828]
[1727578896386,0.258616,65956.0,65955.0,0.002828]
[1727578896608,0.3266589,65956.0,65955.0,0.002828]
[1727578897052,0.32665876,65956.0,65955.0,0.002828]
[1727578897285,0.258616,65956.0,65955.0,0.002828]
[1727578898484,0.32666064,65956.0,65955.0,0.002828]
[1727578898970,0.258616,65956.0,65955.0,0.002828]
[1727578899197,0.34933985,65956.0,65955.0,0.002828]
[1727578902321,0.258616,65956.0,65955.0,0.000828]
[1727578903469,0.37202082,65956.0,65955.0,0.000828]
[1727578904386,0.41969043,65956.0,65955.0,0.000828]
[1727578905561,0.37208754,65956.0,65955.0,0.000828]
[1727578906741,0.352316,65956.0,65955.0,0.000828]
[1727578911271,0.48849914,65956.0,65955.0,0.000828]
[1727578913597,0.352316,65956.0,65955.0,0.000828]
[1727578914123,0.345339,65946.0,65936.0,0.0798]
[1727578914341,0.46017411,65946.0,65936.0,0.0798]
[1727578915059,0.61335693,65946.0,65936.0,0.0798]
[1727578915307,0.46017411,65946.0,65936.0,0.0798]
[1727578915525,0.61330955,65946.0,65936.0,0.0798]
[1727578915741,0.62430955,65946.0,65936.0,0.0798]
[1727578915959,0.61330955,65946.0,65936.0,0.0798]
[1727578916192,0.74281936,65946.0,65936.0,0.0798]
[1727578916420,0.75479313,65946.0,65936.0,0.0798]
[1727578916653,0.74379313,65946.0,65936.0,0.0798]
[1727578917111,0.75779313,65946.0,65936.0,0.0798]
[1727578917339,0.60468742,65946.0,65936.0,0.0798]
[1727578917558,0.60468742,65946.0,65932.0,0.0913]
[1727578917559,0.59268742,65946.0,65932.0,0.0911]
[1727578917776,0.60668742,65946.0,65932.0,0.0911]
[1727578918215,0.59268742,65946.0,65932.0,0.0911]
[1727578918652,0.61646393,65946.0,65932.0,0.0911]
[1727578918870,0.63046393,65946.0,65932.0,0.0911]
[1727578919554,0.78349406,65946.0,65932.0,0.0911]
[1727578919777,0.81382694,65946.0,65932.0,0.0911]
[1727578919998,0.78349571,65946.0,65932.0,0.0911]
[1727578920214,0.79209106,65946.0,65932.0,0.0911]
[1727578920697,0.62505928,65946.0,65932.0,0.0911]
[1727578920918,0.63905928,65946.0,65932.0,0.0911]
[1727578921137,0.79206207,65946.0,65932.0,0.0911]
[1727578921586,0.77806207,65946.0,65932.0,0.0911]
[1727578921819,0.79206207,65946.0,65932.0,0.0911]
[1727578922042,0.63905928,65946.0,65932.0,0.0911]
[1727578922513,0.48742028,65946.0,65932.0,0.087756]
[1727578922735,0.4344995,65933.0,65932.0,0.087756]
[1727578922957,0.43449938,65933.0,65932.0,0.082756]
[1727578923175,0.43449971,65933.0,65932.0,0.082756]
[1727578923398,0.1,65932.0,65931.0,0.0798]
[1727578923629,0.251671,65932.0,65931.0,0.0798]
[1727578924073,0.3196666,65932.0,65931.0,0.0798]
[1727578924521,0.3266666,65932.0,65931.0,0.0798]
[1727578924996,0.3266502,65932.0,65931.0,0.0798]
[1727578925672,0.3326502,65932.0,65931.0,0.0798]
[1727578926340,0.45846341,65932.0,65931.0,0.1762]
[1727578927241,0.39048421,65932.0,65931.0,0.1762]
[1727578929298,0.43577868,65932.0,65931.0,0.1762]
[1727578930187,0.30996547,65932.0,65931.0,0.1762]
[1727578932969,0.30994266,65932.0,65931.0,0.1762]
[1727578933416,0.30994266,65932.0,65931.0,0.177028]
[1727578935193,0.264671,65932.0,65931.0,0.177028]
[1727578935443,0.30994266,65932.0,65931.0,0.177028]
[1727578935658,0.264671,65932.0,65931.0,0.177028]
[1727578937735,0.264671,65932.0,65931.0,0.179028]
[1727578938764,0.264671,65932.0,65931.0,0.18398697]
[1727578938987,0.264671,65932.0,65931.0,0.18418697]
[1727578943160,0.264671,65932.0,65931.0,0.22477806]
[1727578945475,0.264671,65932.0,65931.0,0.18418697]
[1727578945916,0.42479127,65932.0,65931.0,0.080628]
[1727578946358,0.44743386,65932.0,65931.0,0.080628]
[1727578946581,0.33259875,65932.0,65931.0,0.080628]
[1727578947228,0.33425475,65932.0,65931.0,0.080628]
[1727578947455,0.266327,65932.0,65931.0,0.080628]
[1727578948388,0.40974438,65932.0,65931.0,0.080628]
[1727578949513,0.50035879,65932.0,65931.0,0.080628]
[1727578949981,0.52413619,65932.0,65931.0,0.080628]
[1727578950653,0.43352178,65932.0,65931.0,0.080628]
[1727578951407,0.54678979,65932.0,65931.0,0.080628]
[1727578951870,0.6616249,65932.0,65931.0,0.000828]
[1727578952107,0.54678979,65932.0,65931.0,0.000828]
[1727578952338,0.52301239,65932.0,65931.0,0.00082758]
[1727578953528,0.40974438,65932.0,65931.0,0.00082758]
[1727578953995,0.39674438,65932.0,65931.0,0.00082758]
[1727578954212,0.41174438,65932.0,65931.0,0.00082758]
[1727578954432,0.40374438,65932.0,65931.0,0.00082758]
[1727578954644,0.39674438,65932.0,65931.0,0.00082758]
[1727578954864,0.40474438,65932.0,65931.0,0.00082758]
[1727578955108,0.41174438,65932.0,65931.0,0.00082758]
[1727578957381,0.54766599,65932.0,65931.0,0.00082758]
[1727578958512,0.41174438,65932.0,65931.0,0.00082758]
[1727578960180,0.55709161,65932.0,65931.0,0.00082758]
[1727578961326,0.41174438,65932.0,65931.0,0.00082758]
[1727578962023,0.268327,65932.0,65931.0,0.00082758]
[1727578962244,0.41314902,65932.0,65931.0,0.00082758]
[1727578966969,0.4130883,65932.0,65931.0,0.00082758]
[1727578971639,0.4368666,65932.0,65931.0,0.00082758]
[1727578971864,0.43663391,65932.0,65931.0,0.00082758]
[1727578972546,0.58886514,65932.0,65931.0,0.00082758]
[1727578972777,0.71844929,65932.0,65931.0,0.00082758]
[1727578975346,0.56508684,65932.0,65931.0,0.00082758]
[1727578975822,0.71844929,65932.0,65931.0,0.00082758]
[1727578976300,0.41285561,65932.0,65931.0,0.00082758]
[1727578977926,0.40585561,65932.0,65931.0,0.00082758]
[1727578978156,0.39785561,65932.0,65931.0,0.00082758]
[1727578978415,0.40685561,65932.0,65931.0,0.00082758]
[1727578978632,0.41685561,65932.0,65931.0,0.00082758]
[1727578978852,0.44188361,65932.0,65931.0,0.00082758]
[1727578980183,0.46566297,65932.0,65931.0,0.00082758]
[1727578980864,0.44172994,65932.0,65931.0,0.00082758]
[1727578981587,0.76713652,65932.0,65931.0,0.00082758]
[1727578981816,0.76713652,65932.0,65926.0,0.001656]
[1727578981817,0.36651711,65927.0,65926.0,0.001656]
[1727578982075,0.51089205,65927.0,65926.0,0.001656]
[1727578982754,0.71301697,65927.0,65926.0,0.001656]
[1727578983228,0.71218261,65927.0,65926.0,0.001656]
[1727578983470,0.5973475,65927.0,65926.0,0.001656]
[1727578983708,0.39570929,65927.0,65926.0,0.001656]
[1727578984184,0.39570929,65927.0,65926.0,0.084156]
[1727578984654,0.40470929,65927.0,65926.0,0.084156]
[1727578984906,0.40470929,65927.0,65926.0,0.001656]
[1727578985140,0.56109789,65927.0,65926.0,0.001656]
[1727578988175,0.40470983,65927.0,65926.0,0.29119111]
[1727578988409,0.5182742,65927.0,65926.0,0.29635008]
[1727578988642,0.40470983,65927.0,65926.0,0.29835008]
[1727578988877,0.40470983,65927.0,65926.0,0.33935549]
[1727578989351,0.49557052,65927.0,65926.0,0.33935549]
[1727578989680,0.260682,65927.0,65926.0,0.33935549]
[1727578989795,0.40590364,65927.0,65926.0,0.33935549]
[1727578991202,0.51947991,65927.0,65926.0,0.33935549]
[1727578991677,0.51947991,65927.0,65926.0,0.22452038]
[1727578992145,0.51547991,65927.0,65926.0,0.22452038]
[1727578992380,0.51047991,65927.0,65926.0,0.22452038]
[1727578992605,0.39690364,65927.0,65926.0,0.22452038]
[1727578993785,0.48776568,65927.0,65926.0,0.22452038]
[1727578995471,0.39690364,65927.0,65926.0,0.22452038]
[1727578997352,0.48776568,65927.0,65926.0,0.22452038]
[1727578999310,0.4878504,65927.0,65926.0,0.22452038]
[1727578999939,0.4878504,65927.0,65926.0,0.33935549]
[1727579002439,0.39703259,65927.0,65926.0,0.33935549]
[1727579002677,0.251682,65927.0,65926.0,0.33935549]
[1727579002904,0.34249781,65928.0,65927.0,0.002]
[1727579003118,0.48794006,65928.0,65927.0,0.0022]
[1727579003341,0.48794006,65928.0,65927.0,0.04317668]
[1727579004244,0.4878906,65928.0,65927.0,0.04317668]
[1727579005170,0.3362106,65928.0,65927.0,0.04317668]
[1727579005612,0.4878906,65928.0,65927.0,0.04317668]
[1727579005845,0.4878906,65928.0,65927.0,0.04613565]
[1727579006070,0.4878906,65928.0,65927.0,0.04813565]
[1727579007854,0.3362106,65928.0,65927.0,0.04813565]
[1727579008079,0.4878906,65928.0,65927.0,0.04813565]
[1727579009235,0.3362106,65928.0,65927.0,0.04813565]
[1727579009447,0.3362106,65928.0,65927.0,0.04613565]
[1727579009896,0.39709835,65928.0,65927.0,0.04613565]
[1727579010352,0.24247025,65929.0,65928.0,0.002]
[1727579010562,0.48786117,65929.0,65928.0,0.002]
[1727579010795,0.48786117,65929.0,65928.0,0.04318115]
[1727579011009,0.48786117,65929.0,65928.0,0.0022]
[1727579011264,0.48786117,65929.0,65928.0,0.04814012]
[1727579011683,0.33618317,65929.0,65928.0,0.04814012]
[1727579012110,0.39706892,65929.0,65928.0,0.04814012]
[1727579012581,0.48786117,65929.0,65928.0,0.04814012]
[1727579013232,0.39706892,65929.0,65928.0,0.04814012]
[1727579013876,0.24539092,65929.0,65928.0,0.04814012]
[1727579014089,0.39706892,65929.0,65928.0,0.04814012]
[1727579016559,0.39706892,65929.0,65928.0,0.04614012]
[1727579016825,0.39706892,65929.0,65928.0,0.04814012]
[1727579017014,0.48786117,65929.0,65928.0,0.04814012]
[1727579023509,0.48795072,65929.0,65928.0,0.04814012]
[1727579028532,0.39720618,65929.0,65928.0,0.04814012]
[1727579030559,0.51063686,65929.0,65928.0,0.04896812]
[1727579031450,0.39720618,65929.0,65928.0,0.04896812]
[1727579033299,0.39737355,65929.0,65928.0,0.04896812]
[1727579033501,0.39737355,65929.0,65928.0,0.00798697]
[1727579038164,0.39746456,65929.0,65928.0,0.00798697]
[1727579040002,0.39746456,65929.0,65928.0,0.00598697]
[1727579040667,0.39746456,65929.0,65928.0,0.00798697]
[1727579040891,0.39746456,65929.0,65928.0,0.12416723]
[1727579041118,0.39746456,65929.0,65928.0,0.12616723]
[1727579046233,0.39746456,65929.0,65928.0,0.12416723]
[1727579046457,0.39746456,65929.0,65928.0,0.12616723]
[1727579049122,0.24578656,65929.0,65928.0,0.12616723]
[1727579049340,0.39746456,65929.0,65928.0,0.12616723]
[1727579051011,0.39746456,65929.0,65928.0,0.12416723]
[1727579051674,0.39746456,65929.0,65928.0,0.12616723]
[1727579052620,0.39746456,65929.0,65928.0,0.12416723]
[1727579052844,0.39746456,65929.0,65928.0,0.12616723]
[1727579054836,0.29746456,65929.0,65928.0,0.17563046]
[1727579058163,0.29746456,65929.0,65928.0,0.12616723]
[1727579059335,0.29685918,65929.0,65928.0,0.12616723]
[1727579060885,0.14518118,65929.0,65928.0,0.12416723]
[1727579061112,0.001656,65931.0,65930.0,0.0022]
[1727579061332,0.253329,65931.0,65930.0,0.04118259]
[1727579061568,0.253329,65931.0,65930.0,0.07527706]
[1727579061795,0.253329,65931.0,65930.0,0.03925344]
[1727579062018,0.253329,65931.0,65930.0,0.08023603]
[1727579062492,0.253329,65931.0,65930.0,0.04614156]
[1727579062714,0.254329,65931.0,65930.0,0.00515897]
[1727579062941,0.254329,65931.0,65930.0,0.04614156]
[1727579064270,0.102656,65931.0,65930.0,0.16097667]
[1727579064506,0.002656,65931.0,65930.0,0.24257604]
[1727579064965,0.002656,65931.0,65930.0,0.39425204]
[1727579065418,0.002656,65931.0,65930.0,0.24257604]
[1727579067007,0.001656,65931.0,65930.0,0.24257604]
[1727579068830,0.001656,65931.0,65930.0,0.56705204]
[1727579069070,0.09251885,65931.0,65930.0,0.56705204]
[1727579069317,0.001656,65931.0,65930.0,0.56705204]
[1727579070711,0.002656,65931.0,65930.0,0.56705204]
[1727579070938,0.003656,65931.0,65930.0,0.56705204]
[1727579075250,0.003656,65931.0,65930.0,0.56905204]
[1727579077393,0.003656,65931.0,65930.0,0.56705204]
[1727579084679,0.003656,65931.0,65930.0,0.48745267]
[1727579085959,0.001656,65931.0,65930.0,0.48745267]
[1727579086175,0.002656,65931.0,65930.0,0.49345267]
[1727579086396,0.003656,65931.0,65930.0,0.49345267]
[1727579102385,0.003656,65931.0,65930.0,0.37861756]
[1727579102602,0.003656,65931.0,65930.0,0.49345267]
[1727579103044,0.003656,65931.0,65930.0,0.60475154]
[1727579109801,0.003656,65931.0,65930.0,0.05414156]
[1727579110948,0.155329,65931.0,65930.0,0.05414156]
[1727579111186,0.251829,65931.0,65930.0,0.05414156]
[1727579111894,0.100156,65931.0,65930.0,0.05414156]
[1727579112586,0.100156,65931.0,65930.0,0.01315897]
[1727579112801,0.251829,65931.0,65930.0,0.05394887]
[1727579113021,0.251829,65931.0,65930.0,0.01315897]
[1727579113424,0.251829,65931.0,65930.0,0.05399718]
[1727579115480,0.100156,65931.0,65930.0,0.05199718]
[1727579115720,0.251829,65931.0,65930.0,0.05399718]
[1727579116273,0.100156,65931.0,65930.0,0.05399718]
[1727579116478,0.100156,65931.0,65930.0,0.05199718]
[1727579116479,0.251829,65931.0,65930.0,0.05199718]
[1727579116695,0.251829,65931.0,65930.0,0.05399718]
[1727579116917,0.39882426,65931.0,65930.0,0.05399718]
[1727579117137,0.39883237,65931.0,65930.0,0.05199718]
[1727579117357,0.31991515,65931.0,65930.0,0.05399718]
[1727579118235,0.251829,65931.0,65930.0,0.01315897]
[1727579118464,0.100156,65931.0,65930.0,0.05399718]
[1727579118675,0.100156,65931.0,65930.0,0.05199718]
[1727579118886,0.100156,65931.0,65930.0,0.01315897]
[1727579119092,0.16823906,65931.0,65930.0,0.05399718]
[1727579119356,0.1455385,65931.0,65930.0,0.05399718]
[1727579119564,0.14554106,65931.0,65930.0,0.05399718]
[1727579120151,0.003656,65931.0,65930.0,0.05399718]
[1727579120381,0.20071056,65931.0,65930.0,0.05399718]
[1727579120596,0.04903756,65931.0,65930.0,0.05399718]
[1727579121951,0.04903756,65931.0,65930.0,0.05199718]
[1727579122179,0.04903756,65931.0,65930.0,0.05399718]
[1727579122631,0.003656,65931.0,65930.0,0.05199718]
[1727579122854,0.04903756,65931.0,65930.0,0.05199718]
[1727579123293,0.003656,65931.0,65930.0,0.05199718]
[1727579123950,0.003656,65931.0,65930.0,0.05399718]
[1727579124963,0.155329,65931.0,65930.0,0.05199718]
[1727579125180,0.155329,65931.0,65930.0,0.16883229]
[1727579125415,0.155329,65931.0,65930.0,0.12799408]
[1727579125641,0.20071056,65931.0,65930.0,0.16883229]
[1727579125875,0.04903756,65931.0,65930.0,0.16883229]
[1727579126107,0.003656,65931.0,65930.0,0.16883229]
[1727579127275,0.155329,65931.0,65930.0,0.16883229]
[1727579127503,0.20071056,65931.0,65930.0,0.16683229]
[1727579127756,0.20071056,65931.0,65930.0,0.12599408]
[1727579127975,0.20071056,65931.0,65930.0,0.16883229]
[1727579128646,0.20071056,65931.0,65930.0,0.16683229]
[1727579128871,0.20071624,65931.0,65930.0,0.16683229]
[1727579131891,0.20071624,65931.0,65930.0,0.18099676]
[1727579133557,0.155329,65931.0,65930.0,0.06616165]
[1727579133804,0.4876348,65931.0,65930.0,0.06616165]
[1727579134030,0.4876348,65931.0,65930.0,0.01115897]
[1727579134263,0.39687745,65931.0,65930.0,0.01115897]
[1727579134499,0.48762629,65931.0,65930.0,0.01115897]
[1727579135189,0.48662629,65931.0,65930.0,0.01115897]
[1727579135698,0.48662629,65931.0,65930.0,0.0062]
[1727579135929,0.48662629,65931.0,65929.0,0.000827]
[1727579135930,0.422576,65930.0,65929.0,0.000827]
[1727579136179,0.56922445,65930.0,65929.0,0.000827]
[1727579138480,0.70626323,65930.0,65929.0,0.000827]
[1727579138720,0.59297522,65930.0,65929.0,0.000827]
[1727579139173,0.59297522,65930.0,65929.0,0.001827]
[1727579141225,0.56919585,65930.0,65929.0,0.001827]
[1727579141685,0.56919585,65930.0,65929.0,0.000827]
[1727579141913,0.57319585,65930.0,65929.0,0.000827]
[1727579142367,0.68642783,65930.0,65929.0,0.000827]
[1727579143336,0.69242483,65930.0,65929.0,0.000827]
[1727579145409,0.69240613,65930.0,65929.0,0.000827]
[1727579145855,0.71618587,65930.0,65929.0,0.000827]
[1727579148223,0.60297559,65930.0,65929.0,0.000827]
[1727579151255,0.57919585,65930.0,65929.0,0.000827]
[1727579152407,0.58084985,65930.0,65929.0,0.000827]
[1727579153109,0.58049894,65930.0,65929.0,0.000827]
[1727579154414,0.60427938,65930.0,65929.0,0.000827]
[1727579155523,0.58049894,65930.0,65929.0,0.000827]
[1727579156222,0.736887,65930.0,65929.0,0.000827]
[1727579157604,0.58049894,65930.0,65929.0,0.000827]
[1727579157859,0.60325939,65930.0,65929.0,0.000827]
[1727579158553,0.62704098,65930.0,65929.0,0.000827]
[1727579159237,0.85394756,65930.0,65929.0,0.000827]
[1727579159477,0.62704098,65930.0,65929.0,0.000827]
[1727579159939,0.76285067,65930.0,65929.0,0.000827]
[1727579160163,0.91923873,65930.0,65929.0,0.000827]
[1727579160875,0.92769485,65930.0,65929.0,0.000827]
[1727579161326,0.90373805,65930.0,65929.0,0.000827]
[1727579165388,0.76795052,65930.0,65929.0,0.000827]
[1727579165826,0.76803515,65930.0,65929.0,0.000827]
[1727579167477,0.97230117,65930.0,65929.0,0.000827]
[1727579168888,0.99608333,65930.0,65929.0,0.000827]
[1727579170817,0.99580031,65930.0,65929.0,0.000827]
[1727579171269,0.97201815,65930.0,65929.0,0.000827]
[1727579172627,0.92065293,65930.0,65929.0,0.000827]
[1727579172872,1.12478691,65930.0,65929.0,0.000827]
[1727579173096,0.97201815,65930.0,65929.0,0.000827]
[1727579173303,0.62207418,65930.0,65929.0,0.000827]
[1727579173526,0.76762297,65930.0,65929.0,0.000827]
[1727579173770,0.97139128,65930.0,65929.0,0.000827]
[1727579173986,0.96739128,65930.0,65929.0,0.000827]
[1727579175126,0.96139128,65930.0,65929.0,0.000827]
[1727579175393,0.97139128,65930.0,65929.0,0.000827]
[1727579175591,0.90339243,65930.0,65929.0,0.000827]
[1727579176026,0.74700437,65930.0,65929.0,0.000827]
[1727579176279,0.54323539,65930.0,65929.0,0.000827]
[1727579177646,0.69604936,65930.0,65929.0,0.000827]
[1727579178369,0.54323539,65930.0,65929.0,0.000827]
[1727579178584,0.69610492,65930.0,65929.0,0.000827]
[1727579179275,0.63155261,65930.0,65929.0,0.000827]
[1727579179470,0.54318989,65930.0,65929.0,0.000827]
[1727579181892,0.56697208,65930.0,65929.0,0.000827]
[1727579183287,0.54318989,65930.0,65929.0,0.000827]
[1727579189076,0.56697211,65930.0,65929.0,0.000827]
[1727579189540,0.6442552,65930.0,65929.0,0.000827]
[1727579190278,0.64434014,65930.0,65929.0,0.000827]
[1727579190497,0.56705705,65930.0,65929.0,0.000827]
[1727579194641,0.65810994,65930.0,65929.0,0.000827]
[1727579200131,0.65809835,65930.0,65929.0,0.000827]
[1727579201954,0.68188051,65930.0,65929.0,0.000827]
[1727579203341,0.65809835,65930.0,65929.0,0.000827]
[1727579204884,0.65814607,65930.0,65929.0,0.000827]
[1727579206313,0.6819283,65930.0,65929.0,0.000827]
[1727579206527,0.65814607,65930.0,65929.0,0.000827]
[1727579209673,0.65814584,65930.0,65929.0,0.000827]
[1727579214283,0.44841073,65930.0,65929.0,0.000827]
[1727579214546,0.56324584,65930.0,65929.0,0.000827]
[1727579214739,0.56324584,65930.0,65929.0,0.079527]
[1727579214740,0.41695461,65930.0,65929.0,0.079527]
[1727579214956,0.41695461,65930.0,65929.0,0.177827]
[1727579216356,0.39895461,65930.0,65929.0,0.177827]
[1727579216565,0.41095461,65930.0,65929.0,0.177827]
[1727579216781,0.40395461,65930.0,65929.0,0.177827]
[1727579217220,0.40995461,65930.0,65929.0,0.177827]
[1727579217659,0.54599878,65930.0,65929.0,0.177827]
[1727579217858,0.54099878,65930.0,65929.0,0.177827]
[1727579218072,0.54499878,65930.0,65929.0,0.177827]
[1727579219341,0.2632845,65930.0,65929.0,0.177827]
[1727579219562,0.56958423,65930.0,65929.0,0.177827]
[1727579219771,0.43356107,65930.0,65929.0,0.177827]
[1727579220201,0.54839618,65930.0,65929.0,0.177827]
[1727579220415,0.54839618,65930.0,65929.0,0.079527]
[1727579220416,0.68441934,65930.0,65929.0,0.079527]
[1727579220847,0.54839618,65930.0,65929.0,0.000827]
[1727579221294,0.54761656,65930.0,65929.0,0.000827]
[1727579222139,0.54361656,65930.0,65929.0,0.000827]
[1727579222321,0.55161656,65930.0,65929.0,0.000827]
[1727579222541,0.54561656,65930.0,65929.0,0.000827]
[1727579222748,0.71145481,65930.0,65929.0,0.000827]
[1727579222954,0.86447301,65930.0,65929.0,0.000827]
[1727579223160,1.06879901,65930.0,65929.0,0.000827]
[1727579223631,0.91578081,65930.0,65929.0,0.000827]
[1727579224274,0.92156303,65930.0,65929.0,0.000827]
[1727579224470,0.93556303,65930.0,65929.0,0.000827]
[1727579224898,0.92156303,65930.0,65929.0,0.000827]
[1727579225304,0.89778081,65930.0,65929.0,0.000827]
[1727579225523,0.69345481,65930.0,65929.0,0.000827]
[1727579225881,0.70745481,65930.0,65929.0,0.000827]
[1727579226091,0.91178081,65930.0,65929.0,0.000827]
[1727579227345,0.91546592,65930.0,65929.0,0.000827]
[1727579228424,0.93924859,65930.0,65929.0,0.000827]
[1727579228639,0.78286053,65930.0,65929.0,0.000827]
[1727579229063,0.57638488,65930.0,65929.0,0.000827]
[1727579231345,0.55260221,65930.0,65929.0,0.000827]
[1727579232215,0.40511961,65930.0,65929.0,0.000827]
[1727579232444,0.55245916,65930.0,65929.0,0.000827]
[1727579232687,0.70884722,65930.0,65929.0,0.000827]
[1727579233128,0.91512259,65930.0,65929.0,0.000827]
[1727579233584,0.915188,65930.0,65929.0,0.000827]
[1727579236328,0.75879994,65930.0,65929.0,0.000827]
[1727579236751,0.55248641,65930.0,65929.0,0.000827]
[1727579237185,0.55247794,65930.0,65929.0,0.000827]
[1727579238486,0.57626052,65930.0,65929.0,0.000827]
[1727579241109,0.55247794,65930.0,65929.0,0.000827]
[1727579241971,0.75880735,65930.0,65929.0,0.000827]
[1727579243281,0.5524895,65930.0,65929.0,0.000827]
[1727579245335,0.58527828,65930.0,65929.0,0.000827]
[1727579246192,0.57127828,65930.0,65929.0,0.000827]
[1727579246653,0.58527828,65930.0,65929.0,0.000827]
[1727579247102,0.57127828,65930.0,65929.0,0.000827]
[1727579247978,0.58527828,65930.0,65929.0,0.000827]
[1727579250044,0.60906105,65930.0,65929.0,0.000827]
[1727579251142,0.58527828,65930.0,65929.0,0.000827]
[1727579254194,0.60906115,65930.0,65929.0,0.000827]
[1727579255343,0.58527828,65930.0,65929.0,0.000827]
[1727579255788,0.57127828,65930.0,65929.0,0.000827]
[1727579256011,0.58527828,65930.0,65929.0,0.000827]
[1727579256447,0.57127828,65930.0,65929.0,0.000827]
[1727579256668,0.58527828,65930.0,65929.0,0.000827]
[1727579257135,0.5524895,65930.0,65929.0,0.000827]
[1727579261566,0.55234494,65930.0,65929.0,0.000827]
[1727579262268,0.53834494,65930.0,65929.0,0.000827]
[1727579262512,0.55234494,65930.0,65929.0,0.000827]
[1727579262738,0.57612775,65930.0,65929.0,0.000827]
[1727579263145,0.73251581,65930.0,65929.0,0.000827]
[1727579263795,0.708733,65930.0,65929.0,0.000827]
[1727579265803,0.70883496,65930.0,65929.0,0.000827]
[1727579266495,0.70883604,65930.0,65929.0,0.000827]
[1727579267863,0.69483604,65930.0,65929.0,0.000827]
[1727579268083,0.70883604,65930.0,65929.0,0.000827]
[1727579268743,0.69483604,65930.0,65929.0,0.000827]
[1727579268970,0.70883604,65930.0,65929.0,0.000827]
[1727579269921,0.7326189,65930.0,65929.0,0.000827]
[1727579270803,0.57623084,65930.0,65929.0,0.000827]
[1727579271268,0.55244798,65930.0,65929.0,0.000827]
[1727579271488,0.43757268,65930.0,65929.0,0.000827]
[1727579271724,0.55240779,65930.0,65929.0,0.000827]
[1727579271959,0.43757268,65930.0,65929.0,0.000827]
[1727579272214,0.55240779,65930.0,65929.0,0.000827]
[1727579272702,0.43757268,65930.0,65929.0,0.000827]
[1727579275027,0.41457268,65930.0,65929.0,0.082327]
[1727579275250,0.41457268,65930.0,65929.0,0.179527]
[1727579275457,0.56768705,65930.0,65929.0,0.181527]
[1727579275677,0.56768705,65930.0,65929.0,0.23168779]
[1727579275678,0.41457268,65930.0,65929.0,0.23168779]
[1727579275888,0.41457268,65930.0,65929.0,0.181527]
[1727579276114,0.40057268,65930.0,65929.0,0.23168779]
[1727579276325,0.40057268,65930.0,65929.0,0.181527]
[1727579277632,0.41457268,65930.0,65929.0,0.181527]
[1727579278095,0.40057268,65930.0,65929.0,0.181527]
[1727579278309,0.40857268,65930.0,65929.0,0.181527]
[1727579278778,0.5445593,65930.0,65929.0,0.181527]
[1727579280121,0.5683396,65930.0,65929.0,0.181527]
[1727579281231,0.5445593,65930.0,65929.0,0.181527]
[1727579281907,0.40857268,65930.0,65929.0,0.181527]
[1727579284770,0.40057268,65930.0,65929.0,0.181527]
[1727579285238,0.40857268,65930.0,65929.0,0.181527]
[1727579285762,0.40057268,65930.0,65929.0,0.181527]
[1727579286434,0.40557268,65930.0,65929.0,0.181527]
[1727579288709,0.42935315,65930.0,65929.0,0.181527]
[1727579289195,0.43091067,65930.0,65929.0,0.181527]
[1727579291179,0.4071302,65930.0,65929.0,0.181527]
[1727579292444,0.4021302,65930.0,65929.0,0.181527]
[1727579293764,0.40809369,65930.0,65929.0,0.181527]
[1727579294439,0.40209369,65930.0,65929.0,0.181527]
[1727579295316,0.40709369,65930.0,65929.0,0.181527]
[1727579298525,0.43087422,65930.0,65929.0,0.181527]
[1727579298933,0.43091891,65930.0,65929.0,0.181527]
[1727579299596,0.40713838,65930.0,65929.0,0.181527]
[1727579302879,0.43091889,65930.0,65929.0,0.181527]
[1727579303799,0.43109237,65930.0,65929.0,0.181527]
[1727579305940,0.40731186,65930.0,65929.0,0.181527]
[1727579311596,0.43109251,65930.0,65929.0,0.181527]
[1727579312812,0.40731186,65930.0,65929.0,0.181527]
[1727579313687,0.40735502,65930.0,65929.0,0.181527]
[1727579317793,0.54327758,65930.0,65929.0,0.181527]
[1727579318506,0.54441133,65930.0,65929.0,0.181527]
[1727579319643,0.40839116,65930.0,65929.0,0.181527]
[1727579319891,0.40839116,65930.0,65929.0,0.084327]
[1727579320121,0.43217186,65930.0,65929.0,0.084327]
[1727579321268,0.40839116,65930.0,65929.0,0.084327]
[1727579328859,0.43217194,65930.0,65929.0,0.084327]
[1727579329959,0.40839116,65930.0,65929.0,0.084327]
[1727579334491,0.43217207,65930.0,65929.0,0.084327]
[1727579340500,0.43217207,65930.0,65929.0,0.002827]
[1727579344271,0.40839116,65930.0,65929.0,0.002827]
[1727579346506,0.2582845,65930.0,65929.0,0.002827]
[1727579346720,0.40856152,65930.0,65929.0,0.002827]